bitfinex-derivatives/quotes_SOLF0:USTF0_20250416
["timestamp","ask_amount","ask_price","bid_price","bid_amount"]
[1744804696964,36.08453781,126.17,126.15,0.05735937]
[1744804697169,29.36,126.17,126.16,7.927]
[1744804697568,36.08453781,126.17,126.16,7.927]
[1744804698873,29.36,126.17,126.16,7.927]
[1744804701068,0.05047656,126.18,126.16,6.72453781]
[1744804701371,29.36,126.21,126.18,6.72453781]
[1744804701572,29.36,126.21,126.19,6.72453781]
[1744804701872,29.36,126.21,126.2,7.9245]
[1744804712082,0.0567536,126.22,126.21,7.9239]
[1744804718994,29.32,126.27,126.21,6.72453781]
[1744804719194,36.04453781,126.27,126.23,6.72453781]
[1744804720092,0.06065941,126.26,126.24,0.05664511]
[1744804720498,0.06065941,126.26,126.25,7.9214]
[1744804720698,6.78519722,126.26,126.24,0.05664511]
[1744804720898,6.72453781,126.25,126.24,0.05664511]
[1744804725507,6.72453781,126.25,126.24,7.97864511]
[1744804726909,6.72453781,126.25,126.24,0.05664511]
[1744804727208,14.64593781,126.25,126.24,0.05664511]
[1744804731609,7.923,126.23,126.21,7.9238]
[1744804731809,6.72453781,126.22,126.21,7.9238]
[1744804732006,6.72453781,126.22,126.13,31.86925841]
[1744804732209,6.72453781,126.14,126.13,11.7931206]
[1744804732604,6.72453781,126.15,126.14,7.9283]
[1744804732805,6.78103691,126.15,126.14,7.9283]
[1744804735413,0.0564991,126.15,126.14,7.9283]
[1744804736011,36.02453781,126.22,126.14,14.64453781]
[1744804736211,29.3,126.22,126.2,6.72453781]
[1744804736407,29.3,126.22,126.21,14.64843781]
[1744804737315,29.3,126.22,126.21,7.9239]
[1744804740822,29.3,126.22,126.2,0.05000656]
[1744804742314,7.9239,126.21,126.2,0.05000656]
[1744804746418,37.2236,126.22,126.2,7.97440656]
[1744804749520,37.2236,126.22,126.2,0.05000656]
[1744804749721,7.9239,126.21,126.2,0.05000656]
[1744804754722,10.51320728,126.21,126.15,2.4567]
[1744804754923,10.51320728,126.19,126.11,2.4693]
[1744804755123,29.3,126.18,126.11,4.8465]
[1744804755326,29.3,126.18,126.14,7.928]
[1744804755825,7.9267,126.17,126.11,4.8465]
[1744804756126,7.98472113,126.17,126.15,0.06063913]
[1744804757127,0.05802113,126.17,126.15,7.98823913]
[1744804757627,0.05802113,126.17,126.16,7.927]
[1744804757822,0.05802113,126.17,126.16,10.4006]
[1744804759027,29.32,126.21,126.16,2.4736]
[1744804759225,29.32,126.21,126.17,6.73191092]
[1744804759532,37.244,126.21,126.18,7.9254]
[1744804759728,43.97591092,126.21,126.18,7.9254]
[1744804760028,14.65741092,126.19,126.16,12.9087]
[1744804760229,14.65741092,126.19,126.18,0.05587364]
[1744804760430,43.97741092,126.19,126.18,0.05587364]
[1744804762632,7.9266,126.17,126.14,7.928]
[1744804762828,6.73191092,126.17,126.14,7.928]
[1744804763130,36.05191092,126.16,126.14,7.928]
[1744804763931,36.11060169,126.16,126.14,7.97957628]
[1744804767233,36.11060169,126.16,126.15,7.9277]
[1744804767234,29.37869077,126.16,126.15,7.9277]
[1744804767827,29.3,126.19,126.15,6.73191092]
[1744804768033,29.3,126.2,126.17,6.73191092]
[1744804768932,29.3,126.2,126.19,7.9249]
[1744804769126,36.08762175,126.2,126.17,0.05540986]
[1744804769331,36.03191092,126.2,126.17,0.05540986]
[1744804769531,36.08549018,126.2,126.18,7.9257]
[1744804769932,29.35357926,126.2,126.18,7.9257]
[1744804773545,29.35357926,126.2,126.19,7.9251]
[1744804774040,29.35357926,126.2,126.17,0.05540986]
[1744804774241,29.35357926,126.2,126.18,7.9255]
[1744804775637,36.08549018,126.2,126.17,0.05540986]
[1744804775839,36.08549018,126.2,126.17,7.98140986]
[1744804776042,36.08549018,126.2,126.17,0.05540986]
[1744804776544,36.08549018,126.2,126.18,7.9257]
[1744804776740,36.08549018,126.2,126.17,0.05540986]
[1744804776741,6.73191092,126.19,126.17,0.05540986]
[1744804777246,36.08549018,126.2,126.18,7.9256]
[1744804777943,29.35357926,126.2,126.19,7.9251]
[1744804784754,36.08549018,126.2,126.18,7.9253]
[1744804785554,36.08549018,126.2,126.19,7.9251]
[1744804786750,36.08549018,126.2,126.18,7.9255]
[1744804789657,36.08549018,126.2,126.19,7.9251]
[1744804790653,29.35357926,126.2,126.19,7.9251]
[1744804790858,29.3,126.23,126.22,7.9233]
[1744804793458,0.05136395,126.24,126.21,0.06003338]
[1744804793847,0.05136395,126.24,126.23,7.9226]
[1744804800263,29.28,126.26,126.25,7.9214]
[1744804800662,29.28,126.26,126.19,29.28]
[1744804800860,29.28,126.26,126.23,7.9221]
[1744804801462,37.25169696,126.26,126.23,7.98244091]
[1744804803066,7.922,126.24,126.23,0.06034091]
[1744804803459,10.51371917,126.25,126.14,71.4497445]
[1744804803665,10.51371917,126.19,126.14,37.15252533]
[1744804803865,39.77371917,126.21,126.14,37.15252533]
[1744804804064,29.26,126.21,126.14,47.6662445]
[1744804804265,39.77371917,126.21,126.14,37.15252533]
[1744804804566,7.9254,126.19,126.16,7.9265]
[1744804804766,7.97734512,126.19,126.16,7.98239885]
[1744804804968,0.05194512,126.19,126.16,7.98239885]
[1744804805262,29.26,126.18,126.16,7.98239885]
[1744804806265,29.26,126.18,126.16,0.05589885]
[1744804806469,29.26,126.18,126.17,7.9264]
[1744804806861,0.05194512,126.19,126.16,0.05589885]
[1744804809570,0.05194512,126.19,126.18,7.9258]
[1744804812872,29.26,126.28,126.18,18.43371917]
[1744804813065,29.26,126.28,126.23,10.51371917]
[1744804813370,29.26,126.28,126.26,7.9203]
[1744804813573,29.26,126.28,126.23,10.51371917]
[1744804813766,29.26,126.28,126.27,7.9201]
[1744804814366,29.26,126.28,126.25,7.9209]
[1744804814972,29.26,126.28,126.24,0.05519567]
[1744804815462,29.26,126.28,126.25,7.921]
[1744804815662,29.26,126.28,126.24,0.05519567]
[1744804815968,10.51371917,126.26,126.21,7.9236]
[1744804816170,10.51371917,126.24,126.15,29.26]
[1744804816370,10.51371917,126.22,126.15,29.26]
[1744804816570,39.77371917,126.22,126.15,29.26]
[1744804816770,39.77371917,126.22,126.18,7.9254]
[1744804816971,29.26,126.22,126.15,29.26]
[1744804817171,0.0500284,126.2,126.19,7.9247]
[1744804829080,2.84e-05,126.2,126.19,7.9247]
[1744804829286,2.84e-05,126.2,126.19,18.43841917]
[1744804829987,29.24,126.29,126.2,15.8482]
[1744804830189,29.24,126.29,126.22,10.51371917]
[1744804830798,37.1593,126.29,126.22,10.51371917]
[1744804831084,0.05348784,126.27,126.25,7.9209]
[1744804831987,0.05348784,126.27,126.24,0.059811]
[1744804832286,0.05348784,126.27,126.24,10.57353017]
[1744804832486,0.05348784,126.27,126.25,7.9214]
[1744804832679,0.05348784,126.27,126.24,0.059811]
[1744804833184,0.05348784,126.27,126.24,10.57353017]
[1744804833487,0.05348784,126.27,126.25,7.4773]
[1744804833888,0.05348784,126.27,126.26,7.9207]
[1744804834883,0.05348784,126.27,126.25,15.3984]
[1744804835088,0.05348784,126.27,126.24,0.059811]
[1744804835488,39.75371917,126.26,126.24,0.059811]
[1744804835880,29.24,126.26,126.24,0.059811]
[1744804837793,29.24,126.26,126.24,7.981711]
[1744804839290,29.24,126.26,126.24,0.059811]
[1744804840895,7.9214,126.25,126.24,0.059811]
[1744804842093,7.9227,126.23,126.18,2.3996]
[1744804842292,37.1627,126.23,126.18,2.3996]
[1744804842494,37.1627,126.23,126.21,7.9235]
[1744804843295,37.217138,126.23,126.21,7.97420449]
[1744804843998,29.294438,126.23,126.21,7.97420449]
[1744804844200,29.294438,126.23,126.21,0.05070449]
[1744804844402,10.51371917,126.22,126.21,0.05070449]
[1744804844702,18.43701917,126.22,126.21,0.05070449]
[1744804850408,7.9249,126.2,126.15,7.4819]
[1744804850607,37.1649,126.2,126.15,7.4819]
[1744804851213,37.1649,126.2,126.17,7.9258]
[1744804851509,37.21974717,126.2,126.17,0.05744929]
[1744804853010,37.21974717,126.2,126.17,7.98344929]
[1744804853410,7.9252,126.19,126.17,7.98344929]
[1744804854014,7.9252,126.19,126.17,0.05744929]
[1744804854714,7.9258,126.18,126.17,0.05744929]
[1744804860222,7.9255,126.19,126.17,0.05744929]
[1744804860420,29.29484717,126.2,126.17,0.05744929]
[1744804860614,0.05484717,126.2,126.18,10.51371917]
[1744804861014,0.05484717,126.2,126.19,7.9251]
[1744804861219,29.24,126.23,126.18,10.51371917]
[1744804861927,29.24,126.23,126.21,7.9237]
[1744804862329,29.29597145,126.23,126.21,7.98057148]
[1744804862729,37.21857145,126.23,126.21,0.05687148]
[1744804862924,29.29597145,126.23,126.21,0.05687148]
[1744804863328,7.9233,126.22,126.21,0.05687148]
[1744804868932,37.21887145,126.23,126.21,0.05687148]
[1744804869231,29.29597145,126.23,126.21,0.05687148]
[1744804869433,29.29597145,126.23,126.22,7.9233]
[1744804874037,29.24,126.26,126.25,7.9214]
[1744804874241,29.24,126.29,126.22,12.72771917]
[1744804874440,29.24,126.29,126.24,10.51371917]
[1744804874639,29.24,126.29,126.28,7.9195]
[1744804874841,572.6019,126.39,126.26,39.75371917]
[1744804875046,7.9155,126.35,126.28,10.51371917]
[1744804875246,0.05599581,126.34,126.31,7.97593502]
[1744804875642,0.05599581,126.34,126.32,7.9169]
[1744804876137,0.05599581,126.34,126.31,0.05883502]
[1744804876340,0.05599581,126.34,126.33,7.9164]
[1744804878043,29.24,126.35,126.31,0.05883502]
[1744804878344,37.1337,126.38,126.32,10.51371917]
[1744804878552,29.22,126.38,126.34,7.9151]
[1744804878942,7.9139,126.37,126.34,7.9151]
[1744804879144,10.51371917,126.35,126.29,31.454]
[1744804879340,10.51371917,126.33,126.29,29.24]
[1744804879551,10.51371917,126.31,126.29,29.24]
[1744804880453,10.56422325,126.31,126.29,29.29989178]
[1744804880651,29.22,126.3,126.29,0.05989178]
[1744804881346,37.1382,126.3,126.29,0.05989178]
[1744804881646,29.22,126.3,126.23,13.8249206]
[1744804882045,29.22,126.3,126.28,7.9194]
[1744804882250,29.22,126.3,126.23,43.0449206]
[1744804882549,37.1386,126.3,126.27,7.9198]
[1744804882951,29.27631704,126.3,126.27,7.97732132]
[1744804883351,37.19481704,126.3,126.27,7.97732132]
[1744804885150,7.9189,126.29,126.27,0.05752132]
[1744804885550,29.27631704,126.3,126.27,0.05752132]
[1744804885947,7.9195,126.28,126.27,0.05752132]
[1744804886954,16.81172854,126.28,126.18,570.1]
[1744804887151,29.22,126.27,126.18,6.9619]
[1744804887450,29.22,126.27,126.22,7.9229]
[1744804887650,7.9217,126.25,126.22,7.9229]
[1744804887846,7.9217,126.25,126.19,2.3617]
[1744804888051,29.22,126.27,126.19,2.3617]
[1744804888252,0.05471352,126.23,126.21,0.05818024]
[1744804888751,0.05471352,126.23,126.22,7.9233]
[1744804890452,0.05471352,126.23,126.21,7.98178024]
[1744804891452,0.05471352,126.23,126.21,0.05818024]
[1744804891953,7.9242,126.21,126.18,7.9253]
[1744804892154,37.1442,126.21,126.14,50.47522854]
[1744804892455,37.1442,126.21,126.18,7.9254]
[1744804893147,37.1947781,126.21,126.18,7.98138099]
[1744804893854,16.81172854,126.19,126.1,37.15252533]
[1744804894049,29.22,126.18,126.1,43.76542533]
[1744804894249,7.9271,126.16,126.12,7.9292]
[1744804894455,29.22,126.15,126.1,43.76542533]
[1744804894654,29.22,126.15,126.1,6.6129]
[1744804894853,0.05708556,126.14,126.11,7.98352798]
[1744804896157,0.05708556,126.14,126.11,0.05362798]
[1744804896552,7.9295,126.12,126.11,0.05362798]
[1744804896753,37.1495,126.12,126.11,0.05362798]
[1744804899462,29.22,126.12,126.11,0.05362798]
[1744804900059,37.1495,126.12,126.11,0.05362798]
[1744804900565,7.9327,126.07,126.01,46.03172854]
[1744804900758,7.9327,126.07,126.02,6.9772]
[1744804901165,7.9327,126.07,126.03,7.9349]
[1744804901561,7.9327,126.07,126.02,6.9772]
[1744804901758,0.05414391,126.06,126.04,0.02933317]
[1744804902062,29.22,126.05,126.04,0.02933317]
[1744804902467,37.1539,126.05,126.04,0.02933317]
[1744804902663,29.22,126.05,126.04,0.02933317]
[1744804902864,29.22,126.05,125.99,2.2773]
[1744804903170,29.22,126.05,126.0,7.9367]
[1744804903870,7.9346,126.04,125.99,10.2147]
[1744804904069,0.05161199,126.04,125.98,13.9871206]
[1744804904267,0.05161199,126.04,125.98,4.6999]
[1744804904462,7.9357,126.03,125.98,12.6379]
[1744804904667,29.24,126.02,125.98,7.938]
[1744804905067,0.05046413,126.01,125.98,7.938]
[1744804905785,0.05046413,126.01,125.99,7.9374]
[1744804905965,0.05046413,126.01,125.96,19.10422854]
[1744804906164,18.19298239,126.09,125.98,16.81172854]
[1744804906366,29.24,126.12,126.05,16.81172854]
[1744804906870,29.24,126.12,126.09,7.9311]
[1744804907270,37.1696,126.12,126.08,7.9317]
[1744804907469,29.29887031,126.12,126.09,0.05204799]
[1744804907867,29.29887031,126.12,126.11,7.9302]
[1744804908063,0.05887031,126.12,126.11,7.9302]
[1744804908267,0.05887031,126.12,126.09,16.86377653]
[1744804908268,29.24,126.15,126.1,2.3665]
[1744804909376,0.05201841,126.14,126.13,7.9289]
[1744804909668,2.2457,126.24,126.13,46.05172854]
[1744804909877,29.24,126.23,126.22,7.9227]
[1744804910171,587.71172854,126.31,126.2,16.81172854]
[1744804910362,7.9198,126.28,126.21,2.1758]
[1744804910561,29.24,126.3,126.21,2.1758]
[1744804910769,0.05739935,126.26,126.23,0.05940866]
[1744804911274,0.05739935,126.26,126.24,7.922]
[1744804911568,0.05739935,126.26,126.23,0.05940866]
[1744804913373,0.05739935,126.26,126.25,7.9214]
[1744804913773,0.05739935,126.26,126.23,0.05940866]
[1744804914272,0.05739935,126.26,126.24,7.9216]
[1744804914578,0.05739935,126.26,126.23,0.05940866]
[1744804914876,16.81172854,126.38,126.24,46.05172854]
[1744804915077,16.81172854,126.35,126.24,46.05172854]
[1744804915271,46.05172854,126.35,126.24,46.05172854]
[1744804915466,53.96722854,126.35,126.29,7.9185]
[1744804915667,46.05172854,126.35,126.29,7.9185]
[1744804915873,0.05135826,126.33,126.31,0.05122657]
[1744804916175,29.22,126.32,126.24,29.22]
[1744804916974,37.1374,126.32,126.27,7.9197]
[1744804917176,0.05318227,126.29,126.27,7.97086873]
[1744804918076,0.05318227,126.29,126.28,7.9195]
[1744804920273,588.74964622,126.38,126.27,0.05116873]
[1744804920569,29.34,126.37,126.28,29.34]
[1744804920774,29.34,126.37,126.36,7.9145]
[1744804920974,29.34,126.37,126.29,2.3329]
[1744804921175,37.2541,126.37,126.29,2.3329]
[1744804921376,46.15172854,126.37,126.31,7.9172]
[1744804921576,570.22,126.44,126.31,29.32]
[1744804921872,29.32,126.43,126.32,19.18392854]
[1744804922376,7.9117,126.41,126.37,7.9138]
[1744804922577,29.32,126.4,126.37,7.9138]
[1744804922974,37.2322,126.4,126.32,2.3722]
[1744804923177,29.32,126.4,126.32,2.3722]
[1744804923579,29.32,126.4,126.36,7.914]
[1744804924084,37.2321,126.4,126.36,7.914]
[1744804924569,29.32,126.4,126.37,7.9135]
[1744804925271,29.32,126.4,126.32,2.3722]
[1744804925473,7.913,126.39,126.32,2.3722]
[1744804925878,7.913,126.39,126.35,7.9146]
[1744804926079,7.913,126.39,126.32,2.3722]
[1744804926884,29.32,126.4,126.32,2.3722]
[1744804927176,29.32,126.4,126.36,7.914]
[1744804928181,37.2321,126.4,126.37,7.9138]
[1744804928381,29.32,126.4,126.37,7.9138]
[1744804929381,29.37002703,126.4,126.37,7.9138]
[1744804929579,29.37002703,126.4,126.37,7.96557683]
[1744804929781,29.37002703,126.4,126.39,7.9126]
[1744804929976,0.05002703,126.4,126.39,7.9126]
[1744804930480,0.05002703,126.4,126.38,7.9129]
[1744804930880,0.05002703,126.4,126.39,7.9126]
[1744804931584,0.05002703,126.4,126.38,7.913]
[1744804932384,0.05002703,126.4,126.37,0.05177683]
[1744804932887,0.05002703,126.4,126.38,7.9127]
[1744804933089,0.05002703,126.4,126.37,0.05177683]
[1744804933493,0.05002703,126.4,126.38,7.9128]
[1744804933786,0.05002703,126.4,126.37,0.05177683]
[1744804934185,0.05002703,126.4,126.39,7.9126]
[1744804934385,29.3,126.44,126.38,4.621]
[1744804935390,0.05015077,126.42,126.4,0.05641199]
[1744804935585,0.05015077,126.42,126.41,7.911]
[1744804935788,29.3,126.52,126.41,7.92]
[1744804935989,29.3,126.52,126.44,16.81172854]
[1744804936187,569.8,126.61,126.45,2.2884]
[1744804936392,16.81172854,126.59,126.47,16.81172854]
[1744804936692,16.81172854,126.59,126.48,29.3]
[1744804936893,0.05784397,126.54,126.52,0.05950136]
[1744804937090,29.33784397,126.54,126.52,0.05950136]
[1744804937290,37.24144397,126.54,126.52,0.05950136]
[1744804937594,29.33784397,126.54,126.52,0.05950136]
[1744804937889,29.33784397,126.54,126.52,7.96370136]
[1744804938089,29.33784397,126.54,126.52,0.05950136]
[1744804938294,29.33784397,126.54,126.52,7.96360136]
[1744804938897,0.05784397,126.54,126.53,7.9038]
[1744804939091,0.05784397,126.54,126.52,0.05950136]
[1744804939489,7.96154397,126.54,126.52,0.05950136]
[1744804940295,46.14957251,126.54,126.52,0.05950136]
[1744804940491,54.04957251,126.54,126.44,29.28]
[1744804940698,16.81172854,126.51,126.41,29.28]
[1744804940894,29.28,126.5,126.41,29.28]
[1744804941096,7.9073,126.48,126.41,29.28]
[1744804941287,29.28,126.47,126.39,23.32452854]
[1744804941489,29.28,126.47,126.39,35.7928]
[1744804941698,0.04993913,126.44,126.42,0.05509962]
[1744804942494,7.95993913,126.44,126.42,0.05509962]
[1744804942699,29.32993913,126.44,126.42,0.05509962]
[1744804943095,16.81172854,126.43,126.32,37.15252533]
[1744804943399,16.81172854,126.41,126.32,37.15252533]
[1744804943599,7.9142,126.37,126.34,7.9153]
[1744804943899,29.28,126.37,126.32,37.15252533]
[1744804944399,0.05379649,126.36,126.33,0.05364017]
[1744804944699,0.05379649,126.36,126.34,7.9157]
[1744804944897,0.05379649,126.36,126.33,0.05364017]
[1744804945295,0.05379649,126.36,126.35,7.9151]
[1744804945496,0.05379649,126.36,126.33,0.05364017]
[1744804946596,0.05379649,126.36,126.33,7.96954017]
[1744804946899,0.05379649,126.36,126.33,0.05364017]
[1744804947195,0.05379649,126.36,126.34,7.9156]
[1744804948603,0.05379649,126.36,126.33,7.96984017]
[1744804949202,0.05379649,126.36,126.33,0.05364017]
[1744804949600,27.3321842,126.36,126.33,0.05364017]
[1744804949802,7.9166,126.33,126.29,7.9185]
[1744804949996,29.92,126.32,126.29,7.9185]
[1744804950396,29.92,126.32,126.26,2.3233]
[1744804951005,0.06007043,126.3,126.28,0.05760704]
[1744804952206,0.06007043,126.3,126.28,7.97700704]
[1744804952801,37.8589,126.29,126.28,0.05760704]
[1744804952997,29.94,126.29,126.23,9.2872206]
[1744804953202,7.9214,126.25,126.22,7.9229]
[1744804953408,29.94,126.25,126.19,37.15252533]
[1744804953804,7.9244,126.21,126.19,37.15252533]
[1744804954102,37.8644,126.21,126.19,37.15252533]
[1744804954304,37.91859125,126.21,126.19,37.21128502]
[1744804954905,7.9245,126.2,126.19,37.21128502]
[1744804955410,7.9245,126.2,126.19,26.52518502]
[1744804955610,29.99419125,126.21,126.15,7.9272]
[1744804956108,29.99419125,126.21,126.1,93.92089805]
[1744804956505,27.27838771,126.2,126.1,66.64251034]
[1744804956904,7.98480416,126.17,126.15,0.03623097]
[1744804957105,29.94,126.16,126.15,0.03623097]
[1744804958423,29.94,126.16,126.07,57.23838771]
[1744804958621,29.94,126.16,126.07,64.20858771]
[1744804958923,29.94,126.16,126.1,7.9303]
[1744804958924,7.9283,126.14,126.1,7.9303]
[1744804959219,29.96,126.13,126.07,6.9702]
[1744804959623,0.05027836,126.11,126.07,6.9702]
[1744804959818,0.05027836,126.11,126.07,4.6265]
[1744804959819,29.96,126.1,126.07,4.6265]
[1744804960023,29.96,126.1,126.07,12.5589]
[1744804960721,29.96,126.1,126.08,7.932]
[1744804960919,29.96,126.1,126.07,4.6265]
[1744804961117,29.96,126.1,126.04,2.3437]
[1744804961519,0.05671535,126.08,126.04,2.3437]
[1744804962224,0.05671535,126.08,126.07,7.9325]
[1744804962517,29.96,126.14,126.07,27.27838771]
[1744804962722,37.8863,126.18,126.1,27.27838771]
[1744804963523,0.05372216,126.15,126.14,7.9279]
[1744804964124,30.03372216,126.15,126.14,7.9279]
[1744804964626,29.98,126.18,126.17,7.9264]
[1744804965021,28.65797146,126.25,126.2,7.9245]
[1744804965219,571.8429,126.27,126.15,27.27838771]
[1744804965220,29.98,126.22,126.15,27.27838771]
[1744804965424,29.98,126.24,126.15,27.27838771]
[1744804965629,29.98,126.24,126.14,34.4272]
[1744804965813,0.05713091,126.21,126.18,0.05461864]
[1744804966018,29.98,126.2,126.18,0.05461864]
[1744804967422,7.9251,126.19,126.18,0.05461864]
[1744804967627,57.25838771,126.2,126.1,2.3624]
[1744804967820,57.25838771,126.2,126.1,4.6435]
[1744804968019,7.9262,126.18,126.14,7.9278]
[1744804968215,29.98,126.17,126.14,7.9278]
[1744804968420,29.98,126.17,126.1,4.6435]
[1744804968728,0.05679808,126.15,126.14,7.928]
[1744804969229,0.05679808,126.15,126.12,0.05494686]
[1744804969418,29.98,126.14,126.12,0.05494686]
[1744804970627,29.98,126.14,126.12,7.98414686]
[1744804972025,29.98,126.14,126.13,7.9289]
[1744804972526,29.98,126.14,126.12,7.98424686]
[1744804972726,29.98,126.14,126.12,0.05494686]
[1744804973128,29.98,126.14,126.12,7.98404686]
[1744804973318,29.98,126.14,126.12,0.05494686]
[1744804974325,29.98,126.14,126.13,7.9289]
[1744804974529,29.98,126.14,126.12,0.05494686]
[1744804974930,29.98,126.14,126.13,7.9289]
[1744804975429,29.98,126.14,126.12,0.05494686]
[1744804976229,37.9083,126.14,126.12,0.05494686]
[1744804976924,29.98,126.14,126.12,0.05494686]
[1744804979321,29.98,126.2,126.13,27.27838771]
[1744804979520,29.96,126.23,126.15,27.27838771]
[1744804980228,37.8831,126.23,126.19,7.9248]
[1744804980529,0.05224828,126.22,126.2,0.04986385]
[1744804980724,0.05224828,126.22,126.2,7.97426385]
[1744804980922,0.05224828,126.22,126.2,0.04986385]
[1744804982025,29.96,126.27,126.2,0.04986385]
[1744804982227,599.27734279,126.32,126.2,27.32825156]
[1744804982427,29.96,126.3,126.22,27.27838771]
[1744804982627,29.96,126.3,126.22,57.23838771]
[1744804983230,0.05485958,126.27,126.25,0.05224115]
[1744804983427,1.37840889,126.35,126.25,30.01224115]
[1744804983633,29.96,126.35,126.27,27.27838771]
[1744804984430,37.8755,126.35,126.27,27.27838771]
[1744804984632,0.05348006,126.32,126.3,0.05467271]
[1744804985036,0.05348006,126.32,126.31,7.9176]
[1744804986231,0.05348006,126.32,126.3,0.05467271]
[1744804986435,30.01348006,126.32,126.3,0.05467271]
[1744804987638,30.01348006,126.32,126.31,7.9176]
[1744804988139,0.05348006,126.32,126.31,7.9176]
[1744804988337,29.94,126.35,126.32,7.9165]
[1744804988741,7.9161,126.34,126.3,7.97267271]
[1744804989132,27.27838771,126.33,126.3,0.05467271]
[1744804989339,29.94,126.35,126.3,0.05467271]
[1744804989541,0.05049414,126.33,126.3,0.05467271]
[1744804990041,29.94,126.35,126.3,29.99467271]
[1744804990539,37.8554,126.35,126.31,7.9172]
[1744804990740,29.94,126.35,126.3,0.05467271]
[1744804991232,7.97484016,126.34,126.3,7.97257271]
[1744804991942,0.05864016,126.34,126.3,0.05467271]
[1744804992141,570.62,126.38,126.3,0.05467271]
[1744804992142,29.94,126.38,126.3,57.27306042]
[1744804992342,29.94,126.38,126.33,27.27838771]
[1744804992538,29.94,126.41,126.34,2.1479]
[1744804992947,29.94,126.41,126.4,7.912]
[1744804993141,29.94,126.41,126.34,2.1479]
[1744804993441,29.94,126.41,126.39,0.05047204]
[1744804993641,29.99370576,126.41,126.39,0.05117833]
[1744804995140,29.99370576,126.41,126.4,7.912]
[1744804995439,569.98,126.51,126.39,0.05117833]
[1744804995641,37.848,126.47,126.39,29.94]
[1744804995942,29.94,126.47,126.39,29.94]
[1744804996139,7.9084,126.46,126.39,29.94]
[1744804996335,7.9084,126.46,126.42,7.9103]
[1744804996534,3.483e-05,126.44,126.42,57.21838771]
[1744804996734,7.9058,126.5,126.46,7.9079]
[1744804996938,29.94,126.51,126.43,2.3072]
[1744804997139,27.27838771,126.49,126.37,931.98]
[1744804997335,7.9096,126.44,126.4,7.9117]
[1744804997639,31.24,126.46,126.4,7.9117]
[1744804997843,0.05794455,126.43,126.41,0.05129428]
[1744804998340,31.29794455,126.43,126.41,0.05129428]
[1744804999842,7.9107,126.42,126.41,0.05129428]
[1744805000444,0.05794455,126.43,126.41,0.05129428]
[1744805001549,0.05794455,126.43,126.42,7.9107]
[1744805001942,0.05794455,126.43,126.41,0.05129428]
[1744805002646,0.05794455,126.43,126.42,7.9107]
[1744805002948,0.05794455,126.43,126.41,0.05129428]
[1744805003640,601.04,126.49,126.41,31.29129428]
[1744805003845,7.9047,126.52,126.42,31.73068771]
[1744805004243,33.5071,126.54,126.46,7.9079]
[1744805004440,27.27838771,126.53,126.42,4.4523]
[1744805004647,33.5071,126.54,126.42,4.4523]
[1744805004849,0.05192173,126.49,126.46,0.0545596]
[1744805005049,0.05192173,126.49,126.42,4.4523]
[1744805005247,0.05192173,126.49,126.46,0.05100403]
[1744805005545,7.905,126.52,126.47,7.9072]
[1744805005952,58.51838771,126.51,126.42,4.4523]
[1744805006151,39.146,126.5,126.46,7.9081]
[1744805006353,31.24,126.5,126.42,4.4523]
[1744805006554,27.27838771,126.48,126.38,31.24]
[1744805006853,7.9086,126.46,126.42,7.9107]
[1744805007049,31.24,126.47,126.42,7.9107]
[1744805007251,7.9083,126.46,126.42,7.9107]
[1744805007749,0.05375344,126.45,126.43,7.96126057]
[1744805008455,0.05375344,126.45,126.44,7.9095]
[1744805008854,31.24,126.5,126.43,0.05116057]
[1744805009055,31.24,126.51,126.44,31.22]
[1744805009257,31.24,126.51,126.45,2.2274]
[1744805009446,31.24,126.51,126.49,7.906]
[1744805009650,31.24,126.51,126.45,2.2274]
[1744805010151,0.05126774,126.49,126.47,0.05344396]
[1744805011055,39.127,126.48,126.47,0.05344396]
[1744805011255,31.22,126.48,126.41,4.6364]
[1744805011855,7.9082,126.46,126.43,7.9097]
[1744805012057,31.22,126.45,126.4,2.2196]